[Event "Live Chess"]
[Site "Chess.com"]
[Date "2023.05.21"]
[Round "-"]
[White "Conradical12"]
[Black "educatedlad"]
[Result "0-1"]
[WhiteElo "1609"]
[BlackElo "1615"]
[TimeControl "300"]
[EndTime "16:15:00 PDT"]
[Termination "educatedlad won by checkmate"]

1. e4 {[%clk 0:04:58.9]} 1... d5 {[%clk 0:04:59.2]} 2. exd5 {[%clk 0:04:57.8]}
2... Qxd5 {[%clk 0:04:58]} 3. Nc3 {[%clk 0:04:57.3]} 3... Qd8 {[%clk 0:04:57.9]}
4. Nf3 {[%clk 0:04:56]} 4... Nf6 {[%clk 0:04:57.8]} 5. Bc4 {[%clk 0:04:55]} 5...
e6 {[%clk 0:04:50.5]} 6. O-O {[%clk 0:04:53]} 6... b6 {[%clk 0:04:48.7]} 7. Re1
{[%clk 0:04:52.1]} 7... Bb7 {[%clk 0:04:48.2]} 8. d4 {[%clk 0:04:51.3]} 8...
Nbd7 {[%clk 0:04:46.2]} 9. d5 {[%clk 0:04:50.2]} 9... Be7 {[%clk 0:04:36.8]} 10.
dxe6 {[%clk 0:04:47.5]} 10... fxe6 {[%clk 0:04:36.3]} 11. Bxe6 {[%clk
0:04:46.7]} 11... Nc5 {[%clk 0:04:32.9]} 12. Qe2 {[%clk 0:04:37.9]} 12... Nxe6
{[%clk 0:04:31]} 13. Qxe6 {[%clk 0:04:36.6]} 13... Bxf3 {[%clk 0:04:25.7]} 14.
gxf3 {[%clk 0:04:33.7]} 14... Qd7 {[%clk 0:04:20.6]} 15. Qxd7+ {[%clk
0:04:30.8]} 15... Nxd7 {[%clk 0:04:18.8]} 16. Bg5 {[%clk 0:04:29]} 16... Nf6
{[%clk 0:04:15.5]} 17. Nd5 {[%clk 0:04:26.5]} 17... Nxd5 {[%clk 0:04:12.7]} 18.
Bxe7 {[%clk 0:04:21.8]} 18... Nxe7 {[%clk 0:04:11.5]} 19. Re5 {[%clk 0:04:21]}
19... Kf7 {[%clk 0:04:07.9]} 20. Rd1 {[%clk 0:04:18.4]} 20... Rad8 {[%clk
0:04:05.8]} 21. Rde1 {[%clk 0:04:16.9]} 21... Rhe8 {[%clk 0:04:03.3]} 22. R5e4
{[%clk 0:04:10.7]} 22... Ng6 {[%clk 0:04:01.8]} 23. Rxe8 {[%clk 0:04:06.6]}
23... Rxe8 {[%clk 0:04:01.1]} 24. Rxe8 {[%clk 0:04:06.4]} 24... Kxe8 {[%clk
0:03:59.6]} 25. Kg2 {[%clk 0:04:06.3]} 25... Ne5 {[%clk 0:03:58.9]} 26. Kg3
{[%clk 0:04:06.2]} 26... Nc4 {[%clk 0:03:58.4]} 27. b3 {[%clk 0:04:00.5]} 27...
Na3 {[%clk 0:03:56.6]} 28. c4 {[%clk 0:03:58.8]} 28... Ke7 {[%clk 0:03:52]} 29.
Kg4 {[%clk 0:03:57.7]} 29... Kf6 {[%clk 0:03:51]} 30. Kf4 {[%clk 0:03:56.9]}
30... Nc2 {[%clk 0:03:50]} 31. h4 {[%clk 0:03:54.2]} 31... Nd4 {[%clk
0:03:48.8]} 32. Ke4 {[%clk 0:03:52.7]} 32... c5 {[%clk 0:03:43.1]} 33. Kd5
{[%clk 0:03:50.8]} 33... Nxf3 {[%clk 0:03:41.6]} 34. Kc6 {[%clk 0:03:50.1]}
34... Nxh4 {[%clk 0:03:39.6]} 35. Kb7 {[%clk 0:03:49.7]} 35... Nf5 {[%clk
0:03:39]} 36. Kxa7 {[%clk 0:03:49.2]} 36... h5 {[%clk 0:03:35.4]} 37. Kxb6
{[%clk 0:03:48.4]} 37... h4 {[%clk 0:03:31.9]} 38. Kxc5 {[%clk 0:03:47.7]} 38...
h3 {[%clk 0:03:31.5]} 39. Kb6 {[%clk 0:03:47.6]} 39... h2 {[%clk 0:03:30.9]} 40.
c5 {[%clk 0:03:47.5]} 40... h1=Q {[%clk 0:03:30.4]} 41. c6 {[%clk 0:03:47.4]}
41... Qg1 {[%clk 0:03:22.3]} 42. c7 {[%clk 0:03:45.5]} 42... Qxf2+ {[%clk
0:03:21.6]} 43. Kb7 {[%clk 0:03:44.6]} 43... Nd6+ {[%clk 0:03:20.3]} 44. Kb8
{[%clk 0:03:43.5]} 44... Qc5 {[%clk 0:03:18.3]} 45. b4 {[%clk 0:03:41.8]} 45...
Qb6+ {[%clk 0:03:14.6]} 46. Ka8 {[%clk 0:03:41.7]} 46... Qb7# {[%clk 0:03:13.2]}
0-1

[Event "Live Chess"]
[Site "Chess.com"]
[Date "2023.05.21"]
[Round "-"]
[White "ms_lilley"]
[Black "gmnorfolk"]
[Result "0-1"]
[WhiteElo "588"]
[BlackElo "2111"]
[TimeControl "300"]
[EndTime "16:15:08 PDT"]
[Termination "gmnorfolk won by checkmate"]

1. d4 {[%clk 0:04:56.4]} 1... Nf6 {[%clk 0:04:58.6]} 2. e3 {[%clk 0:04:54.8]}
2... g6 {[%clk 0:04:57.5]} 3. Nf3 {[%clk 0:04:52.7]} 3... Bg7 {[%clk 0:04:57.4]}
4. d5 {[%clk 0:04:49]} 4... O-O {[%clk 0:04:56.5]} 5. c4 {[%clk 0:04:47]} 5...
c6 {[%clk 0:04:56]} 6. Nc3 {[%clk 0:04:41.5]} 6... cxd5 {[%clk 0:04:54.8]} 7.
Nxd5 {[%clk 0:04:38.6]} 7... Nxd5 {[%clk 0:04:53.2]} 8. cxd5 {[%clk 0:04:37.3]}
8... d6 {[%clk 0:04:52.8]} 9. e4 {[%clk 0:04:33.5]} 9... Nd7 {[%clk 0:04:52.2]}
10. a4 {[%clk 0:04:29]} 10... Nf6 {[%clk 0:04:52.1]} 11. Bd3 {[%clk 0:04:24.2]}
11... Nd7 {[%clk 0:04:52]} 12. Ra2 {[%clk 0:04:20.2]} 12... Nf6 {[%clk
0:04:51.9]} 13. b4 {[%clk 0:04:13]} 13... e6 {[%clk 0:04:51.8]} 14. b5 {[%clk
0:03:57.3]} 14... exd5 {[%clk 0:04:51.7]} 15. e5 {[%clk 0:03:51.6]} 15... dxe5
{[%clk 0:04:49.1]} 16. Nxe5 {[%clk 0:03:49.5]} 16... Re8 {[%clk 0:04:45]} 17.
Bb2 {[%clk 0:03:44]} 17... Nh5 {[%clk 0:04:42]} 18. O-O {[%clk 0:03:41.4]} 18...
Bxe5 {[%clk 0:04:40.8]} 19. Bxe5 {[%clk 0:03:34.5]} 19... Rxe5 {[%clk
0:04:39.1]} 20. Bxg6 {[%clk 0:03:32.5]} 20... hxg6 {[%clk 0:04:37.5]} 21. g3
{[%clk 0:03:26.7]} 21... Nf6 {[%clk 0:04:33.8]} 22. Kg2 {[%clk 0:03:23.8]} 22...
Bf5 {[%clk 0:04:31.3]} 23. Qf3 {[%clk 0:03:20.4]} 23... Be4 {[%clk 0:04:30.2]}
24. Qxe4 {[%clk 0:03:07.2]} 24... dxe4 {[%clk 0:04:27.6]} 25. Re2 {[%clk
0:03:02.1]} 25... e3 {[%clk 0:04:25.9]} 26. fxe3 {[%clk 0:03:00.1]} 26... Qd5+
{[%clk 0:04:21.9]} 27. Kh3 {[%clk 0:02:52.9]} 27... Rh5# {[%clk 0:04:20]} 0-1

[Event "Live Chess"]
[Site "Chess.com"]
[Date "2023.05.21"]
[Round "-"]
[White "Cimon"]
[Black "CameronM1234"]
[Result "1-0"]
[WhiteElo "1869"]
[BlackElo "1095"]
[TimeControl "300"]
[EndTime "16:15:12 PDT"]
[Termination "Cimon won by resignation"]

1. Nf3 {[%clk 0:04:57.8]} 1... g6 {[%clk 0:04:58.2]} 2. d4 {[%clk 0:04:56]} 2...
Bg7 {[%clk 0:04:57.1]} 3. c4 {[%clk 0:04:54.7]} 3... d6 {[%clk 0:04:56.1]} 4.
Nc3 {[%clk 0:04:52.4]} 4... Nf6 {[%clk 0:04:55.1]} 5. e4 {[%clk 0:04:49.8]} 5...
O-O {[%clk 0:04:52.4]} 6. h3 {[%clk 0:04:47.7]} 6... h6 {[%clk 0:04:50.6]} 7.
Be3 {[%clk 0:04:45.9]} 7... c5 {[%clk 0:04:31.5]} 8. d5 {[%clk 0:04:24.8]} 8...
e6 {[%clk 0:04:27]} 9. Bd3 {[%clk 0:04:22.1]} 9... exd5 {[%clk 0:04:25.7]} 10.
cxd5 {[%clk 0:04:19.4]} 10... Nbd7 {[%clk 0:04:16]} 11. O-O {[%clk 0:04:16.7]}
11... Ne5 {[%clk 0:04:14.9]} 12. Nxe5 {[%clk 0:04:14.5]} 12... dxe5 {[%clk
0:04:14.2]} 13. Bxc5 {[%clk 0:04:08]} 13... Re8 {[%clk 0:04:13.4]} 14. Qb3
{[%clk 0:03:56.7]} 14... b6 {[%clk 0:04:12.5]} 15. Be3 {[%clk 0:03:46.3]} 15...
Nd7 {[%clk 0:03:59.1]} 16. Na4 {[%clk 0:03:29.3]} 16... Qc7 {[%clk 0:03:57.7]}
17. Rac1 {[%clk 0:03:26.4]} 17... Qd6 {[%clk 0:03:47.6]} 18. Bb5 {[%clk
0:03:00.1]} 18... Bb7 {[%clk 0:03:43.3]} 19. Bc6 {[%clk 0:02:43.6]} 19... Bxc6
{[%clk 0:03:41]} 20. Rxc6 {[%clk 0:02:41.4]} 20... Qb8 {[%clk 0:03:09.7]} 21.
Rfc1 {[%clk 0:02:36.9]} 21... b5 {[%clk 0:02:38.7]} 22. Nc3 {[%clk 0:02:22.7]}
22... Rc8 {[%clk 0:02:32.1]} 23. Qxb5 {[%clk 0:02:18.2]} 23... Qxb5 {[%clk
0:02:26.1]} 24. Nxb5 {[%clk 0:02:16.6]} 24... Rxc6 {[%clk 0:02:24.9]} 25. dxc6
{[%clk 0:02:14.2]} 25... Nb6 {[%clk 0:02:19.4]} 26. c7 {[%clk 0:02:12.1]} 26...
Rc8 {[%clk 0:02:04.9]} 27. Nxa7 {[%clk 0:02:07.6]} 27... Rxc7 {[%clk 0:02:01.4]}
28. Rxc7 {[%clk 0:02:05.2]} 1-0

[Event "Live Chess"]
[Site "Chess.com"]
[Date "2023.05.21"]
[Round "-"]
[White "toog"]
[Black "stevochess11"]
[Result "1-0"]
[WhiteElo "2582"]
[BlackElo "1741"]
[TimeControl "300"]
[EndTime "16:15:34 PDT"]
[Termination "toog won by resignation"]

1. e4 {[%clk 0:04:58.5]} 1... c5 {[%clk 0:04:57.6]} 2. d4 {[%clk 0:04:56.8]}
2... g6 {[%clk 0:04:53.8]} 3. dxc5 {[%clk 0:04:49]} 3... Bg7 {[%clk 0:04:52.1]}
4. c3 {[%clk 0:04:47.3]} 4... Nc6 {[%clk 0:04:45.4]} 5. Be3 {[%clk 0:04:45.6]}
5... Qa5 {[%clk 0:04:29.2]} 6. Nd2 {[%clk 0:04:41]} 6... Nf6 {[%clk 0:04:23.6]}
7. Ngf3 {[%clk 0:04:30.6]} 7... O-O {[%clk 0:04:10.3]} 8. Be2 {[%clk 0:04:27.9]}
8... Ng4 {[%clk 0:04:04.6]} 9. Bd4 {[%clk 0:04:22.3]} 9... e5 {[%clk 0:03:57.9]}
10. Nc4 {[%clk 0:04:19]} 10... Qc7 {[%clk 0:03:49.3]} 11. Be3 {[%clk 0:04:17.3]}
11... b5 {[%clk 0:03:38.5]} 12. cxb6 {[%clk 0:04:15.3]} 12... axb6 {[%clk
0:03:37.3]} 13. Bxb6 {[%clk 0:04:13.2]} 13... Qb7 {[%clk 0:03:31.3]} 14. h3
{[%clk 0:04:11.9]} 14... Nf6 {[%clk 0:03:20.3]} 15. Qc2 {[%clk 0:04:10.2]} 15...
Ra6 {[%clk 0:03:03.7]} 16. Bc5 {[%clk 0:04:08.7]} 16... Nh5 {[%clk 0:02:51.8]}
17. Bxf8 {[%clk 0:04:05]} 17... Bxf8 {[%clk 0:02:50.5]} 18. g3 {[%clk
0:04:04.4]} 18... Bh6 {[%clk 0:02:33.2]} 19. b4 {[%clk 0:03:59]} 19... Ne7
{[%clk 0:02:28.2]} 20. Ncxe5 {[%clk 0:03:53.9]} 20... Re6 {[%clk 0:02:23.1]} 21.
Bc4 {[%clk 0:03:51.7]} 21... d5 {[%clk 0:02:21.2]} 22. exd5 {[%clk 0:03:50.2]}
22... Nxd5 {[%clk 0:02:20.1]} 23. O-O {[%clk 0:03:48.4]} 23... Bg7 {[%clk
0:02:08.9]} 24. Rad1 {[%clk 0:03:44]} 24... Bxe5 {[%clk 0:02:05.5]} 25. Bxd5
{[%clk 0:03:43]} 25... Qc7 {[%clk 0:01:58.5]} 26. Bxe6 {[%clk 0:03:41.3]} 26...
Bxe6 {[%clk 0:01:51.5]} 27. Nxe5 {[%clk 0:03:40.1]} 27... Qxe5 {[%clk
0:01:50.5]} 28. Rfe1 {[%clk 0:03:39.5]} 28... Qf5 {[%clk 0:01:47.5]} 29. Qxf5
{[%clk 0:03:37.4]} 1-0

[Event "Live Chess"]
[Site "Chess.com"]
[Date "2023.05.21"]
[Round "-"]
[White "AbilifyXL"]
[Black "JoeyCage"]
[Result "1-0"]
[WhiteElo "1979"]
[BlackElo "2294"]
[TimeControl "300"]
[EndTime "16:15:42 PDT"]
[Termination "AbilifyXL won by checkmate"]

1. d4 {[%clk 0:04:58.7]} 1... g6 {[%clk 0:04:55.4]} 2. c4 {[%clk 0:04:56.1]}
2... Bg7 {[%clk 0:04:53.8]} 3. Nc3 {[%clk 0:04:55.5]} 3... d6 {[%clk 0:04:52.9]}
4. e4 {[%clk 0:04:54.5]} 4... Nc6 {[%clk 0:04:51.5]} 5. Be3 {[%clk 0:04:53.7]}
5... e5 {[%clk 0:04:50.2]} 6. d5 {[%clk 0:04:44.3]} 6... Nd4 {[%clk 0:04:40.8]}
7. Nge2 {[%clk 0:04:41.3]} 7... Bg4 {[%clk 0:04:34.5]} 8. Qd2 {[%clk 0:04:24.8]}
8... Bxe2 {[%clk 0:04:30.9]} 9. Nxe2 {[%clk 0:04:20.2]} 9... Nxe2 {[%clk
0:04:29.6]} 10. Bxe2 {[%clk 0:04:19.2]} 10... Ne7 {[%clk 0:04:28.9]} 11. O-O
{[%clk 0:04:17.8]} 11... O-O {[%clk 0:04:27.1]} 12. Rad1 {[%clk 0:04:15]} 12...
f5 {[%clk 0:04:25.8]} 13. exf5 {[%clk 0:04:06.6]} 13... Nxf5 {[%clk 0:04:24.4]}
14. Bg4 {[%clk 0:03:59.2]} 14... Qe7 {[%clk 0:04:17.6]} 15. h3 {[%clk
0:03:57.5]} 15... h5 {[%clk 0:04:10.2]} 16. Bxf5 {[%clk 0:03:54.6]} 16... gxf5
{[%clk 0:04:06.9]} 17. Bh6 {[%clk 0:03:52.5]} 17... Qf6 {[%clk 0:04:01]} 18.
Bxg7 {[%clk 0:03:51.3]} 18... Kxg7 {[%clk 0:04:00]} 19. b4 {[%clk 0:03:46.8]}
19... Kh7 {[%clk 0:03:58.3]} 20. c5 {[%clk 0:03:45.2]} 20... Rg8 {[%clk
0:03:56.9]} 21. cxd6 {[%clk 0:03:40.7]} 21... cxd6 {[%clk 0:03:55.2]} 22. Rc1
{[%clk 0:03:39.8]} 22... Rg7 {[%clk 0:03:53.2]} 23. Rc3 {[%clk 0:03:36.2]} 23...
f4 {[%clk 0:03:49.1]} 24. Rfc1 {[%clk 0:03:32.6]} 24... Rag8 {[%clk 0:03:46.9]}
25. Rc7 {[%clk 0:03:29.6]} 25... Qg6 {[%clk 0:03:45.2]} 26. f3 {[%clk
0:03:15.2]} 26... Kh6 {[%clk 0:03:40.4]} 27. Rxg7 {[%clk 0:03:03.1]} 27... Rxg7
{[%clk 0:03:38.7]} 28. Qf2 {[%clk 0:02:53.6]} 28... a6 {[%clk 0:03:35.5]} 29. a4
{[%clk 0:02:51.3]} 29... e4 {[%clk 0:03:33.8]} 30. fxe4 {[%clk 0:02:46.9]} 30...
Qxe4 {[%clk 0:03:32.2]} 31. Re1 {[%clk 0:02:45.8]} 31... Rxg2+ {[%clk
0:03:23.7]} 32. Qxg2 {[%clk 0:02:43.9]} 32... Qxe1+ {[%clk 0:03:22.2]} 33. Kh2
{[%clk 0:02:43.2]} 33... Qe5 {[%clk 0:03:18]} 34. Qf3 {[%clk 0:02:41]} 34... Kg5
{[%clk 0:03:13.8]} 35. Qg2+ {[%clk 0:02:35.6]} 35... Kf5 {[%clk 0:03:12.4]} 36.
Qf3 {[%clk 0:02:34.6]} 36... Kf6 {[%clk 0:03:02.4]} 37. h4 {[%clk 0:02:30.2]}
37... Qf5 {[%clk 0:02:59.9]} 38. Qc3+ {[%clk 0:02:27.6]} 38... Kg6 {[%clk
0:02:55.2]} 39. Qh8 {[%clk 0:02:10.2]} 39... Qg4 {[%clk 0:02:52.4]} 40. Qe8+
{[%clk 0:02:02.6]} 40... Kf5 {[%clk 0:02:49.8]} 41. Qe6# {[%clk 0:01:59.2]} 1-0

[Event "Live Chess"]
[Site "Chess.com"]
[Date "2023.05.21"]
[Round "-"]
[White "LiamClery2020"]
[Black "SupremeTactician"]
[Result "0-1"]
[WhiteElo "2065"]
[BlackElo "2339"]
[TimeControl "300"]
[EndTime "16:15:56 PDT"]
[Termination "SupremeTactician won by resignation"]

1. e4 {[%clk 0:04:59.8]} 1... e5 {[%clk 0:04:57.9]} 2. Nc3 {[%clk 0:04:59]} 2...
Bc5 {[%clk 0:04:54.7]} 3. Qg4 {[%clk 0:04:56.5]} 3... Qf6 {[%clk 0:04:47.3]} 4.
Qg3 {[%clk 0:04:55.5]} 4... c6 {[%clk 0:04:43.9]} 5. Nf3 {[%clk 0:04:53.9]} 5...
d6 {[%clk 0:04:39.9]} 6. Na4 {[%clk 0:04:46.6]} 6... Bb6 {[%clk 0:04:38.3]} 7.
Nxb6 {[%clk 0:04:45.8]} 7... axb6 {[%clk 0:04:38.2]} 8. c3 {[%clk 0:04:44.7]}
8... Be6 {[%clk 0:04:35.2]} 9. d4 {[%clk 0:04:43.4]} 9... exd4 {[%clk
0:04:34.4]} 10. cxd4 {[%clk 0:04:42.9]} 10... Nd7 {[%clk 0:04:32.7]} 11. Bd3
{[%clk 0:04:42]} 11... Ne7 {[%clk 0:04:28.2]} 12. e5 {[%clk 0:04:36.8]} 12...
dxe5 {[%clk 0:04:27.4]} 13. dxe5 {[%clk 0:04:36]} 13... Nxe5 {[%clk 0:04:26.2]}
14. Qxe5 {[%clk 0:04:30.5]} 14... Qxe5+ {[%clk 0:04:23.6]} 15. Nxe5 {[%clk
0:04:29.9]} 15... Ra5 {[%clk 0:04:23.4]} 16. Nf3 {[%clk 0:04:26.5]} 16... O-O
{[%clk 0:04:22.6]} 17. O-O {[%clk 0:04:25.8]} 17... Rd8 {[%clk 0:04:21.7]} 18.
Be3 {[%clk 0:04:23.4]} 18... Rxd3 {[%clk 0:04:19.3]} 19. Rad1 {[%clk 0:04:22.9]}
19... Rxd1 {[%clk 0:04:17.2]} 20. Rxd1 {[%clk 0:04:22.8]} 20... f6 {[%clk
0:04:12.6]} 21. a3 {[%clk 0:04:19.6]} 21... Rb5 {[%clk 0:04:11.9]} 22. Nd4
{[%clk 0:04:18.2]} 22... Re5 {[%clk 0:04:05.6]} 23. Nxe6 {[%clk 0:04:12.2]}
23... Rxe6 {[%clk 0:04:04.8]} 24. Rd8+ {[%clk 0:04:09.3]} 24... Kf7 {[%clk
0:04:03.8]} 25. Rb8 {[%clk 0:04:08]} 25... Nd5 {[%clk 0:03:58.2]} 26. Rxb7+
{[%clk 0:04:06.7]} 26... Re7 {[%clk 0:03:57.8]} 27. Rxe7+ {[%clk 0:04:05.4]}
27... Kxe7 {[%clk 0:03:57.7]} 28. Kf1 {[%clk 0:04:03.7]} 28... Nxe3+ {[%clk
0:03:53.5]} 29. fxe3 {[%clk 0:04:02.8]} 29... Kd6 {[%clk 0:03:53.4]} 30. Ke2
{[%clk 0:04:02.1]} 30... Kd5 {[%clk 0:03:53.3]} 31. Kd3 {[%clk 0:04:01.6]} 31...
f5 {[%clk 0:03:52]} 32. h4 {[%clk 0:03:59.9]} 32... g6 {[%clk 0:03:49.7]} 33. g3
{[%clk 0:03:57.2]} 33... h6 {[%clk 0:03:48.9]} 34. b3 {[%clk 0:03:56.8]} 34...
g5 {[%clk 0:03:38.2]} 35. hxg5 {[%clk 0:03:51.5]} 35... hxg5 {[%clk 0:03:38.1]}
36. a4 {[%clk 0:03:47.7]} 36... c5 {[%clk 0:03:30.7]} 37. Kd2 {[%clk 0:03:41.6]}
37... Ke4 {[%clk 0:03:25.7]} 38. Ke2 {[%clk 0:03:40.8]} 38... g4 {[%clk
0:03:24.8]} 39. Kd2 {[%clk 0:03:34.1]} 39... Kf3 {[%clk 0:03:22.9]} 40. Kd3
{[%clk 0:03:33.6]} 40... Kxg3 {[%clk 0:03:22.3]} 41. a5 {[%clk 0:03:33.5]} 41...
bxa5 {[%clk 0:03:21]} 0-1

[Event "Live Chess"]
[Site "Chess.com"]
[Date "2023.05.21"]
[Round "-"]
[White "mikkyb4"]
[Black "wadsy27"]
[Result "0-1"]
[WhiteElo "1030"]
[BlackElo "2567"]
[TimeControl "300"]
[EndTime "16:15:57 PDT"]
[Termination "wadsy27 won by resignation"]

1. e4 {[%clk 0:04:57.1]} 1... c5 {[%clk 0:04:59.5]} 2. a3 {[%clk 0:04:55.9]}
2... d5 {[%clk 0:04:58]} 3. exd5 {[%clk 0:04:54.1]} 3... Qxd5 {[%clk 0:04:57.9]}
4. Nc3 {[%clk 0:04:49.4]} 4... Qd8 {[%clk 0:04:53.8]} 5. b4 {[%clk 0:04:46.8]}
5... cxb4 {[%clk 0:04:51.5]} 6. axb4 {[%clk 0:04:46]} 6... Nf6 {[%clk
0:04:51.1]} 7. Nf3 {[%clk 0:04:39.4]} 7... e6 {[%clk 0:04:49.3]} 8. Ne5 {[%clk
0:04:17.4]} 8... Nbd7 {[%clk 0:04:47.2]} 9. Bb5 {[%clk 0:04:15.9]} 9... Bd6
{[%clk 0:04:44]} 10. d4 {[%clk 0:03:55.3]} 10... O-O {[%clk 0:04:40.6]} 11. O-O
{[%clk 0:03:40.2]} 11... Nxe5 {[%clk 0:04:37.2]} 12. dxe5 {[%clk 0:03:37]} 12...
Bxe5 {[%clk 0:04:37.1]} 13. Qxd8 {[%clk 0:03:35.1]} 13... Rxd8 {[%clk 0:04:37]}
14. Bb2 {[%clk 0:03:28.1]} 14... Bd7 {[%clk 0:04:34.9]} 15. Bxd7 {[%clk
0:03:22]} 15... Rxd7 {[%clk 0:04:34.8]} 16. Rfe1 {[%clk 0:03:16.6]} 16... Bd4
{[%clk 0:04:30.4]} 17. Rad1 {[%clk 0:03:13.2]} 17... Rc8 {[%clk 0:04:25.1]} 18.
Rd3 {[%clk 0:03:09.1]} 18... Bxc3 {[%clk 0:04:19.3]} 19. Rxd7 {[%clk 0:03:04]}
19... Nxd7 {[%clk 0:04:16.5]} 20. Bxc3 {[%clk 0:03:02.7]} 20... Rxc3 {[%clk
0:04:15.8]} 21. Rd1 {[%clk 0:03:00.3]} 21... Rc7 {[%clk 0:04:14.6]} 22. c4
{[%clk 0:02:56.6]} 22... Kf8 {[%clk 0:04:12.9]} 23. c5 {[%clk 0:02:55.3]} 23...
Ke7 {[%clk 0:04:12.3]} 24. Kf1 {[%clk 0:02:47]} 24... b6 {[%clk 0:04:10]} 25.
cxb6 {[%clk 0:02:34.6]} 25... axb6 {[%clk 0:04:09.1]} 26. Ra1 {[%clk 0:02:30.3]}
26... Rc4 {[%clk 0:04:07.9]} 27. b5 {[%clk 0:02:25.8]} 27... Rb4 {[%clk
0:04:06.2]} 28. Ra7 {[%clk 0:02:20.1]} 28... Rxb5 {[%clk 0:04:04.6]} 29. Ke2
{[%clk 0:02:19.4]} 29... Rb1 {[%clk 0:04:03.2]} 30. Rb7 {[%clk 0:02:16.4]} 30...
Kd6 {[%clk 0:04:02.3]} 31. Ke3 {[%clk 0:02:13.3]} 31... Ra1 {[%clk 0:04:01.5]}
32. Ke4 {[%clk 0:02:10.4]} 32... Kc6 {[%clk 0:04:00.9]} 0-1

[Event "Live Chess"]
[Site "Chess.com"]
[Date "2023.05.21"]
[Round "-"]
[White "WelshTiger"]
[Black "Shepherds_Pie"]
[Result "1/2-1/2"]
[WhiteElo "2362"]
[BlackElo "1927"]
[TimeControl "300"]
[EndTime "16:15:58 PDT"]
[Termination "Game drawn by repetition"]

1. e4 {[%clk 0:04:58.6]} 1... e6 {[%clk 0:04:55.6]} 2. Nf3 {[%clk 0:04:56]} 2...
d5 {[%clk 0:04:53.8]} 3. e5 {[%clk 0:04:55.6]} 3... c5 {[%clk 0:04:52.6]} 4. b4
{[%clk 0:04:54.7]} 4... b6 {[%clk 0:04:50.7]} 5. Bb5+ {[%clk 0:04:51.5]} 5...
Bd7 {[%clk 0:04:49.3]} 6. Qe2 {[%clk 0:04:48.1]} 6... a6 {[%clk 0:04:46.5]} 7.
Bxd7+ {[%clk 0:04:46.5]} 7... Qxd7 {[%clk 0:04:44.4]} 8. a3 {[%clk 0:04:42.9]}
8... Nc6 {[%clk 0:04:43.2]} 9. c3 {[%clk 0:04:42.1]} 9... Nh6 {[%clk 0:04:38.4]}
10. d4 {[%clk 0:04:37.8]} 10... Nf5 {[%clk 0:04:35.3]} 11. Be3 {[%clk 0:04:37]}
11... cxd4 {[%clk 0:04:33.1]} 12. cxd4 {[%clk 0:04:36]} 12... h5 {[%clk
0:04:30.8]} 13. O-O {[%clk 0:04:33.4]} 13... Be7 {[%clk 0:04:29.4]} 14. Nc3
{[%clk 0:04:28.3]} 14... b5 {[%clk 0:04:27.6]} 15. Qd3 {[%clk 0:04:23.1]} 15...
Rc8 {[%clk 0:04:23.9]} 16. Ne2 {[%clk 0:04:21.6]} 16... g6 {[%clk 0:04:18.1]}
17. Rac1 {[%clk 0:04:19.4]} 17... O-O {[%clk 0:04:16.4]} 18. Bg5 {[%clk
0:04:15.8]} 18... Bxg5 {[%clk 0:04:11.8]} 19. Nxg5 {[%clk 0:04:14.6]} 19... Nce7
{[%clk 0:04:10.4]} 20. Rc5 {[%clk 0:04:11.4]} 20... Rc6 {[%clk 0:04:03.1]} 21.
Rfc1 {[%clk 0:04:09.6]} 21... Rfc8 {[%clk 0:04:01.8]} 22. Nf3 {[%clk 0:04:02.6]}
22... Rxc5 {[%clk 0:03:49.1]} 23. dxc5 {[%clk 0:04:01.4]} 23... Nc6 {[%clk
0:03:46.7]} 24. Qc3 {[%clk 0:03:35.4]} 24... Qe7 {[%clk 0:03:36.2]} 25. Re1
{[%clk 0:03:32.8]} 25... Rd8 {[%clk 0:03:34]} 26. Ned4 {[%clk 0:03:31.9]} 26...
Nfxd4 {[%clk 0:03:32.4]} 27. Nxd4 {[%clk 0:03:31.2]} 27... Rc8 {[%clk
0:03:29.4]} 28. a4 {[%clk 0:03:15.7]} 28... Nxd4 {[%clk 0:03:24.9]} 29. Qxd4
{[%clk 0:03:15.6]} 29... Rc6 {[%clk 0:03:23.7]} 30. axb5 {[%clk 0:03:13.3]}
30... axb5 {[%clk 0:03:22.2]} 31. Ra1 {[%clk 0:03:13]} 31... Qb7 {[%clk
0:03:18.9]} 32. h4 {[%clk 0:03:11.6]} 32... Ra6 {[%clk 0:03:17]} 33. Rxa6 {[%clk
0:03:06.2]} 33... Qxa6 {[%clk 0:03:15.4]} 34. g3 {[%clk 0:03:05.7]} 34... Kg7
{[%clk 0:03:10.5]} 35. Qc3 {[%clk 0:03:01.7]} 35... Qc6 {[%clk 0:03:09.2]} 36.
Qf3 {[%clk 0:03:00.2]} 36... Kg8 {[%clk 0:03:07]} 37. Qf6 {[%clk 0:02:57.7]}
37... Qd7 {[%clk 0:03:05.2]} 38. Kf1 {[%clk 0:02:49]} 38... d4 {[%clk
0:03:03.5]} 39. Ke2 {[%clk 0:02:45.6]} 39... Qd5 {[%clk 0:02:58.6]} 40. Qe7
{[%clk 0:02:38.1]} 40... Qc4+ {[%clk 0:02:51.7]} 41. Kf3 {[%clk 0:02:37.1]}
41... Qd3+ {[%clk 0:02:45.9]} 42. Kg2 {[%clk 0:02:34.2]} 42... Qe4+ {[%clk
0:02:43.8]} 43. Kh2 {[%clk 0:02:33.2]} 43... d3 {[%clk 0:02:27.2]} 44. Qd6
{[%clk 0:02:29.7]} 44... Qe2 {[%clk 0:02:21.3]} 45. c6 {[%clk 0:02:21]} 45...
Qxf2+ {[%clk 0:02:18]} 46. Kh3 {[%clk 0:02:20.4]} 46... d2 {[%clk 0:01:51.3]}
47. c7 {[%clk 0:02:19.1]} 47... Qf5+ {[%clk 0:01:49]} 48. Kh2 {[%clk 0:02:14.5]}
48... Qc2 {[%clk 0:01:45.5]} 49. Kh3 {[%clk 0:02:09.4]} 49... Qf5+ {[%clk
0:01:38.3]} 50. Kg2 {[%clk 0:02:07]} 50... Qe4+ {[%clk 0:01:35.5]} 51. Kh2
{[%clk 0:02:03.3]} 51... Qe2+ {[%clk 0:01:31.7]} 52. Kh3 {[%clk 0:02:02.9]}
52... Qf1+ {[%clk 0:01:30.1]} 53. Kh2 {[%clk 0:02:01.7]} 53... Qf2+ {[%clk
0:01:24.3]} 54. Kh3 {[%clk 0:02:01.2]} 54... Qf5+ {[%clk 0:01:22.5]} 1/2-1/2